Cogmind - Beta 14 @@@ ROGUE MODE // 2024.08.17 @ 17:18:55 Player: THN-L0C Result: Destroyed by MM-8UQ(R) with Subdweller Laser Performance ------------- Evolutions (0) 0 Regions Visited (2) 400 Robots Destroyed (29) 145 Value Destroyed (587) 587 Prototype IDs (0) 0 Alien Tech Used (0) 0 Bonus (0) 0 TOTAL SCORE: 1132 Bonus ------- None Cogmind --------- Core Integrity 0/250 Matter 282/300 Energy 125/125 System Corruption 0% Temperature Cool (6) Movement Treading (160) Location -10/Subcaves Parts ------- > --- POWER (1) -------- Light Ion Engine > --- PROPULSION (2) --- Light Treads Light Treads > --- UTILITY (2) ------ Large Storage Unit Seismic Detector > --- WEAPON (2) ------- Makeshift Laser Barrage Gun > --- INVENTORY (15) --- Subdweller Power Source Light Treads Light Treads Subdweller Monowheel High-capacity Matter Pod (0) Subdweller Optics Improved Terrain Scanner Makeshift Light Armor Plating Scrap Shield Light Assault Rifle Battle Cannon Grenade Launcher Subdweller Shrapnel Launcher Hammer Peak State ------------ > --- POWER ------------ Light Nuclear Core > --- PROPULSION ------- Light Treads Light Treads > --- UTILITY ---------- Large Storage Unit Seismic Detector > --- WEAPON ----------- Makeshift Laser Subdweller Machine Gun > --- INVENTORY -------- Light Ion Engine Subdweller Power Source Light Treads Light Treads Wheel Small Storage Unit Large Storage Unit High-capacity Matter Pod Improved Terrain Scanner Light Assault Rifle Battle Cannon Grenade Launcher Grenade Launcher Hammer [Rating: 14] Favorites ----------- Power Light Nuclear Core Engine Light Ion Engine Power Core Light Nuclear Core Propulsion Light Treads Treads Light Treads Wheel Wheel Utility Seismic Detector Device Seismic Detector Storage Large Storage Unit Weapon Light Assault Rifle Energy Gun Makeshift Laser Ballistic Gun Light Assault Rifle Launcher Grenade Launcher Impact Weapon Hammer Build | -11 -10 -10 ------- Run | Yrd Mat Sub Slots Evolved . | . . . Power . | . . . Propulsion . | . . . Utility . | . . . Weapon . | . . . Parts Attached 23 | 8 9 6 Power 4 | 1 2 1 Engine 3 | 1 1 1 Core 1 | . 1 . Reactor . | . . . Propulsion 5 | 3 2 . Treads 4 | 2 2 . Leg . | . . . Wheel 1 | 1 . . Hover . | . . . Flight . | . . . Utility 4 | 2 2 . Device 1 | 1 . . Storage 3 | 1 2 . Processor . | . . . Hackware . | . . . Protection . | . . . Artifact . | . . . Weapon 10 | 2 3 5 Energy Gun 1 | . . 1 Energy Cannon . | . . . Ballistic Gun 4 | 2 . 2 Ballistic Cannon . | . . . Launcher 3 | . 2 1 Special Weapon . | . . . Impact Weapon 2 | . 1 1 Slashing Weapon . | . . . Piercing Weapon . | . . . Special Melee Weapon . | . . . Unidentified Prototypes . | . . . Parts Lost 4 | . 3 1 Power 2 | . 1 1 Propulsion 1 | . 1 . Utility . | . . . Weapon 1 | . 1 . Highest Loss Streak 1 | . 1 1 To Critical Strikes . | . . . Average Slot Usage (%) 97 | . 96 99 Engine 5 | . 6 2 Core 8 | . 7 11 Treads 26 | . 24 28 Device 14 | . 14 14 Storage 14 | . 14 14 Energy Gun 1 | . . 4 Ballistic Gun 18 | . 21 12 Launcher 5 | . 4 8 Impact Weapon 2 | . 1 2 Peak Build Rating 14 | 7 10 14 Average Rating 9 | 5 8 11 On Entrance 5 | . 7 10 Naked Turns . | . . . Heaviest Build 32 | 11 30 32 Greatest Support 40 | 40 40 40 Greatest Overweight (x) 2 | 2 1 . Average Overweight (x) . | . . . Largest Inventory Capacity 15 | 8 15 15 Average Capacity 12 | 7 10 15 Most Carried 15 | 3 11 15 Average Carried 8 | 1 6 12 Final Capacity 15 | 8 15 15 Final Carried 15 | 3 11 15 Class Distribution -------------------- 100% | Mutant Dominant Class ---------------- Mutant | -10/Materials Mutant | -10/Subcaves Resources | -11 -10 -10 ----------- Run | Yrd Mat Sub Matter Collected 729 | 291 199 239 Remotely . | . . . Salvage Created 528 | 46 409 73 Parts 64 | 3 54 7 Haulers Intercepted 1 | . 1 . Recyclers Shooed 1 | . 1 . Parts Field Recycled . | . . . Retrieved Matter . | . . . Parts Self-Destructed . | . . . Prevented . | . . . Kills | -11 -10 -10 ------- Run | Yrd Mat Sub Combat Hostiles Destroyed 21 | . 17 4 Guns 8 | . 7 1 AOE 13 | . 10 3 Classes Destroyed 7 | 1 5 1 Builder 4 | . 4 . Tunneler 2 | 2 . . Hauler 1 | . 1 . Watcher 1 | . 1 . Swarmer 9 | . 9 . Grunt 8 | . 8 . Subdweller 4 | . . 4 Best Kill Streak 6 | 2 6 2 Combat Bots Only 3 | . 3 2 Max Kills in Single Turn 3 | 1 3 1 Gunslinging . | . . . Exploded 2 | . 2 1 Melee . | . . . Uniques/NPCs Destroyed . | . . . Combat | -11 -10 -10 -------- Run | Yrd Mat Sub Hostile Shots Fired 97 | . 83 14 Missed 32 | . 28 4 Damage Taken 958 | . 723 235 Core 257 | . 149 108 Absorbed by Shields . | . . . Core Remaining (%) 100 | 100 . . Volleys Fired 96 | 13 67 16 Largest 2 | 2 2 2 Hottest 150 | 40 50 150 Shots Fired 172 | 26 124 22 Gun 153 | 26 112 15 Cannon . | . . . Launcher 19 | . 12 7 Special . | . . . Kinetic 144 | 26 112 6 Thermal 9 | . . 9 Explosive 19 | . 12 7 Electromagnetic . | . . . Robot Hit Streak 15 | 6 15 13 Robot Miss Streak 4 | 2 4 1 Penetration Max . | . . . Secondary Targets . | . . . Shots Hit Robots 96 | 18 64 14 Core Hits 51 | 4 39 8 Critical Kills 2 | . 2 . Critical Parts Destroyed . | . . . Critical Strikes 2 | . 2 . Destroy 2 | . 2 . Melee Attacks 9 | . 5 4 Impact 9 | . 5 4 Slashing . | . . . Piercing . | . . . Sneak Attacks 1 | . 1 . Combat Hostiles . | . . . Follow-up Attacks . | . . . Damage Inflicted 1835 | 154 1245 436 Guns 784 | 154 476 154 Cannons . | . . . Explosions 990 | . 708 282 Melee 51 | . 51 . Ramming 10 | . 10 . Kinetic 714 | 154 476 84 Thermal 70 | . . 70 Explosive 990 | . 708 282 Electromagnetic . | . . . Impact 51 | . 51 . Slashing . | . . . Piercing . | . . . Highest Corruption . | . . . Average Corruption . | . . . Corruption Purged . | . . . Corruption Blocked . | . . . Overload Shots 2 | . . 2 Overflow Damage . | . . . Projectiles . | . . . Explosions . | . . . Melee . | . . . Knockbacks . | . . . Impact . | . . . Kinetic . | . . . Secondary . | . . . Self-Inflicted Damage 16 | . . 16 Shots 1 | . . 1 Rammed 1 | . 1 . Targets Rammed 1 | . 1 . Kicked . | . . . Crushed . | . . . Highest Temperature 74 | . 34 74 Average Temperature 13 | . 10 42 Received Heat Transfer 243 | . 225 18 Siege Activations . | . . . Robots Corrupted . | . . . Combat Hostiles . | . . . Parts Fried . | . . . Impact Corruptions . | . . . Robots Melted . | . . . Combat Hostiles . | . . . Parts Melted . | . . . Heat Transferred 148 | . . 148 Parts Sabotaged . | . . . Parts Stolen . | . . . Parts Stripped . | . . . Power Chain Reactions . | . . . Alert | -11 -10 -10 ------- Run | Yrd Mat Sub Peak Influence 255 | 10 255 . Initial 6 | . 6 . Average 99 | 4 110 . Maximum Alert Level 1 | . 1 . Low Security (%) 93 | 100 93 . Level 1 6 | . 6 . Level 2 . | . . . Level 3 . | . . . Level 4 . | . . . Level 5 . | . . . High Security . | . . . Max Security . | . . . Squads Dispatched 3 | . 3 . Investigation 2 | . 2 . Extermination . | . . . Reinforcement 1 | . 1 . Assault . | . . . Garrison . | . . . Intercept . | . . . Searches Triggered . | . . . Construction Impeded . | . . . Haulers Reinforced . | . . . Active Scanning Responses . | . . . Cargo Convoy Interrupts . | . . . Stealth | -11 -10 -10 --------- Run | Yrd Mat Sub Distress Signals 1 | . 1 . Communications Jammed . | . . . Distress Signals . | . . . Times Spotted 34 | . 28 6 Peak Tracking Total 4 | . 4 2 Tactical Retreats 1 | . 1 . Traps | -11 -10 -10 ------- Run | Yrd Mat Sub Traps Triggered 2 | . 2 . Indirectly . | . . . Trap Hack Attempts . | . . . Triggered . | . . . Disarmed . | . . . Reprogrammed . | . . . Reused . | . . . Traps Extracted . | . . . Installed 1 | . . 1 Triggered 1 | . . 1 Machines | -11 -10 -10 ---------- Run | Yrd Mat Sub Machines Disabled . | . . . Max in Single Turn . | . . . Machines Repaired . | . . . Machines Dismantled . | . . . Machines Sabotaged . | . . . Overloaded Fab Kills . | . . . Hacking | -11 -10 -10 --------- Run | Yrd Mat Sub Machines Accessed 9 | . 7 2 Terminals 7 | . 7 . Fabricators . | . . . Repair Stations . | . . . Recycling Units . | . . . Scanalyzers . | . . . Garrison Access . | . . . Total Hacks 27 | . 24 3 Successful 18 | . 15 3 Failed 9 | . 9 . Catastrophic 2 | . 2 . Database Lockouts . | . . . Manual 23 | . 23 . Terminals 24 | . 24 . Fabricators . | . . . Repair Stations . | . . . Recycling Units . | . . . Scanalyzers . | . . . Garrison Access . | . . . Terminal Hacks 10 | . 7 3 Record 1 | . . 1 Robot Analysis 4 | . 4 . Open Door 1 | . . 1 Terminal Index 1 | . 1 . Unreport Threat 1 | . 1 . Maintenance Status 1 | . 1 . Release Object 1 | . . 1 Fabricator Hacks . | . . . Repair Station Hacks . | . . . Recycling Unit Hacks . | . . . Scanalyzer . | . . . Garrison Access Hacks . | . . . Unauthorized Hacks 8 | . 8 . Terminals 8 | . 8 . Assimilate 1 | . 1 . Botnet 7 | . 7 . Fabricators . | . . . Repair Stations . | . . . Recycling Units . | . . . Scanalyzers . | . . . Garrison Access . | . . . Data Cores Recovered . | . . . Used . | . . . Hacking Detections 6 | . 6 . Full Trace Events 2 | . 2 . Feedback Events . | . . . Feedback Blocked . | . . . Robot Schematics Acquired . | . . . Robots Built . | . . . Authchips . | . . . Time . | . . . Total Robot Build Rating . | . . . Part Schematics Acquired . | . . . Parts Built . | . . . Authchips . | . . . Time . | . . . Total Part Build Rating . | . . . Parts Repaired . | . . . Time . | . . . Parts Recycled . | . . . Recycled Matter . | . . . Retrieved Matter . | . . . Retrieved Components . | . . . Parts Scanalyzed . | . . . Part Schematics Acquired . | . . . Parts Damaged . | . . . Bothacking | -11 -10 -10 ------------ Run | Yrd Mat Sub Used RIF Installer . | . . . Robots Hacked . | . . . Non-combat . | . . . Combat . | . . . Robot Hacks Applied . | . . . Relay Couplers Released . | . . . Fabnet Peak Effective % . | . . . Robots Rewired . | . . . Allies Hacked . | . . . Hacks Repelled . | . . . Allies | -11 -10 -10 -------- Run | Yrd Mat Sub Total Allies . | . . . Largest Group . | . . . Highest-Rated Group . | . . . Highest-Rated Ally . | . . . Total Orders . | . . . Ally Attacks . | . . . Total Damage . | . . . Kills . | . . . Allies Corrupted . | . . . Allies Melted . | . . . Intel | -11 -10 -10 ------- Run | Yrd Mat Sub Robot Analysis Total 4 | . 4 . Derelict Logs Recovered 1 | . . 1 Drone Launches . | . . . Drone Recoveries . | . . . Exploration | -11 -10 -10 ------------- Run | Yrd Mat Sub Turns Passed 2163 | 145 1289 729 Spaces Moved 1093 | 67 620 406 Core 18 | 18 . . Treads 1075 | 49 620 406 Legs . | . . . Wheels . | . . . Hover . | . . . Flight . | . . . Fastest Speed 50 | 50 160 160 Average Speed 166 | 145 173 160 Slowest Speed 240 | 160 240 160 Overloaded Moves . | . . . Propulsion Burnouts . | . . . Robots Hopped . | . . . Cave-ins Triggered . | . . . Exploration Rate (%) 43 | 6 96 29 Regions Visited 2 Branch Regions 1 Pre-discovered Areas . | . . . Known Exits Taken . | . . . Unknown Exits Taken 2 | 1 1 . Scrap Searched 3 | . . 3 Spaces Dug 3 | . 2 1 Terrain Destroyed 124 | . 87 37 Melee 3 | . 2 1 Projectile . | . . . AOE 121 | . 85 36 Terrain Rammed . | . . . Walls Destroyed . | . . . Machines Disabled . | . . . Actions | -11 -10 -10 --------- Run | Yrd Mat Sub Total 1268 | 90 720 458 Wait 24 | . 14 10 Move 1091 | 66 619 406 Hop . | . . . Pick Up 15 | 2 5 8 Fast Attach 10 | 8 1 1 Attach 3 | . 2 1 Detach 2 | 1 . 1 Swap 10 | . 6 4 Drop 6 | . . 6 Fire 96 | 13 67 16 Melee 9 | . 5 4 Ram . | . . . Kick . | . . . Crush 1 | . 1 . Escape Stasis . | . . . Rewire . | . . . Trap 1 | . . 1 Miscellaneous . | . . . Route ------- -11/Scrapyard -10/Materials (discovered 5 exits: [*Mat x3] / [*Min] / *Sub) -10/Subcaves (discovered 1 exit: [*Mat]) History --------- Turn | Location | Event 16 | -11/Scrapyard | Discovered new exit (range 15) 146 | -11/Scrapyard | Entered Materials 318 | -10/Materials | Build established: Mutant 327 | -10/Materials | Discovered new exit (range 10) 464 | -10/Materials | Discovered new exit (range 8) 916 | -10/Materials | Discovered new exit (range 15) 1098 | -10/Materials | Core integrity fell below 50% 1129 | -10/Materials | Discovered new exit (range 16) 1370 | -10/Materials | Discovered new exit (range 10) 1435 | -10/Materials | Entered Subcaves 1474 | -10/Subcaves | Ambushed by Subdwellers from Twisted Machinery 1769 | -10/Subcaves | Core integrity fell below 20% 1882 | -10/Subcaves | A swath of the cavern ceiling suddenly collapsed 1910 | -10/Subcaves | Shifting Twisted Machinery released Mak. Laser 1963 | -10/Subcaves | Learned Materials security intel 1965 | -10/Subcaves | Shifting Twisted Machinery released Battle Cannon 2014 | -10/Subcaves | Disturbed a concealed Subdweller 2129 | -10/Subcaves | Shifting Twisted Machinery released Battle Rifle 2135 | -10/Subcaves | Shifting Twisted Machinery released Scrap Shield 2141 | -10/Subcaves | Discovered new exit (range 10) 2164 | -10/Subcaves | Destroyed by MM-8UQ(R) with Subdweller Laser Last Messages --------------- 02066_ Found Sub. Shrapnel Launcher. 02066_ Found Sub. Laser. 02066_ Found 64 Matter. 02067_ Acquired 64 matter. 02069_ Subatomizers dissect the Mak. Light Armor Plating. 02071_ Acquired Mak. Light Armor Plating. 02079_ Dropped Grenade Launcher. 02079_ Acquired Sub. Shrapnel Launcher. 02083_ Subatomizers dissect the Sub. Laser. 02083_ Searching scrap... 02083_ Found Barrage Gun. 02083_ Found 48 Matter. 02084_ Acquired 48 matter. 02086_ Dropped Sub. Machine Gun. Battle Rifle falls loose from the Twisted Machinery. Scrap Shield falls loose from the Twisted Machinery. 02141_ EXIT=FOUND 02150_ Dropped Sml. Storage Unit. 02151_ Dropped Lrg. Storage Unit. 02151_ Acquired Scrap Shield. Map ----- +----------------------------------------------------+ | ?????????????????????????????????????????????????? | | ?????????????????????????????????????????????????? | | ?????????????????????????????????????????????????? | | ?????????????????????????????????????????????????? | | ?????????????????????????????????????????????????? | | ?????????????????????????????????????????????????? | | ?????????????????????????????????????????????????? | | ?????????????????????????????????????????????????? | | ?????????????????????????????????????????????????? | | ?????????????????????????????????????????????????? | | ?????????????????????????????????????????????????? | | ?????????????????????????????????????????????????? | | ?????????????????????????????????????????????????? | | ????????????????????#????????????????????????????? | | ?????????##????????? """?????????????????????????? | | ?????????# ????? """#?????#??????????????????? | | ?????????# "???? #???## ??????????????? | | ?????????# ""??? " #??? #?????????????? | | ??????????# " ??#"" #?? #?????????????? | | ???????????# < ###"""#???" #??????????????? | | ????????????? "" !""""##?#" ##?????????????? | | ????????????? """"" """ ###" #?????????????? | | ????????????# # #! "R "##" #??????????????? | | ??????????????????#"R [ " #????????????????? | | ??????????????????#" " " ##???????????????? | | ??????????????????# ## "@" ##??????????????? | | ??????????????????###### """ ##?????????????? | | ???????????????????????# " #?????????????? | | ???????????????????????# " #?????????????? | | ???????????????????????# #?????????????? | | ???????????????????????# ##?????????????? | | ???????????????????????## #??????????????? | | ????????????????????????##### ##??????????????? | | ????????????????????????????## ##???????????????? | | ???????????????????????????### #????????????????? | | ??????????????????????????## #????????????????? | | ??????????????????????????# ##???????????????? | | ??????????????????????????# #???????????????? | | ??????????????????????##??## ####???????????????? | | ??????????????????????# #### #?????????????????? | | ??????????????????????# # ##?????????????????? | | ??????????????????????# #??????????????????? | | ??????????????????????# # #??????????????????? | | ??????????????????????## ## #??????????????????? | | ???????????????????????# ## #??????????????????? | | ??????????????????????## #####??????????????? | | ???????????????????#### #??????????????? | | ??????????????????##]## & #??????????????? | | ??????????????????# ["##= #??????????????? | | ??????????????????## #??????????????? | +----------------------------------------------------+ Best States ------------- Heat Dissipation 25 Energy Generation 14 Energy Capacity 160 Matter Stores 300 Matter Capacity 300 Sight Range 16 Terrain Scan Density 10 Evasion (%) 40 Recoil Reduction 2 Item Schematics ----------------- None Robot Schematics ------------------ None Fabricated ------------ Nothing Alien Tech Used ----------------- None Achievements -------------- None Challenges ------------ None Game ------ Seed CombatMetaClaymores Manual? 0 Play Time 00:15:07 Cumulative 55.0 hours Start 2024.08.17 @ 17:05:09 End 2024.08.17 @ 17:18:55 Sessions 1 Manual Loads 0 Difficulty Rogue Special Mode None Game No. 57 Rogue 57 Adventurer 0 Explorer 0 Win Type - Total 0 Types 0/0/0/0/0/0/0/0/0 Lore% 40 Gallery% 43 Achievement% 36 Wizard Run 0 Options --------- Layout 2 ASCII 0 Keyboard 1 Movement Vi Keybinds 0 Fullscreen 1 Font 32/SmallcapsGlow Map View 77x44 Zoom Use 0% Tactical HUD 1 Map Filters NONE Filters NONE Steam 1 RUN: 985abb42-7a17-421c-ba25-bd19ddec66a5